[Event "Early-Titled-Tuesday-Blitz-April-02-2024"]
[Site "Chess.com"]
[Date "2024.04.02"]
[Round "11"]
[White "Vasily_IM"]
[Black "WCM-Mexicana"]
[Result "1-0"]
[WhiteElo "2541"]
[BlackElo "2369"]
[TimeControl "180+1"]
[EndTime "10:04:27 PDT"]
[Termination "Vasily_IM won by resignation"]

1. d4 {[%clk 0:03:00.5]} 1... Nf6 {[%clk 0:02:56.9]} 2. c4 {[%clk 0:03:00.6]}
2... e6 {[%clk 0:02:55.7]} 3. Nc3 {[%clk 0:03:01.1]} 3... d5 {[%clk 0:02:56]} 4.
cxd5 {[%clk 0:03:00.8]} 4... exd5 {[%clk 0:02:56.9]} 5. Bg5 {[%clk 0:03:00.7]}
5... Nbd7 {[%clk 0:02:47.1]} 6. e3 {[%clk 0:03:00.5]} 6... c6 {[%clk 0:02:46.8]}
7. Bd3 {[%clk 0:03:00.4]} 7... Bb4 {[%clk 0:02:46.3]} 8. Qc2 {[%clk 0:02:59.6]}
8... h6 {[%clk 0:02:23.5]} 9. Bh4 {[%clk 0:02:59.2]} 9... a6 {[%clk 0:02:21.4]}
10. Nf3 {[%clk 0:02:58.7]} 10... O-O {[%clk 0:02:19.3]} 11. O-O {[%clk
0:02:58.4]} 11... Re8 {[%clk 0:02:19.2]} 12. a3 {[%clk 0:02:57.9]} 12... Bd6
{[%clk 0:02:19.1]} 13. b4 {[%clk 0:02:57.3]} 13... b6 {[%clk 0:02:18.7]} 14.
Rab1 {[%clk 0:02:55.8]} 14... Bb7 {[%clk 0:02:11.2]} 15. Rfc1 {[%clk 0:02:55.2]}
15... Rc8 {[%clk 0:02:09.5]} 16. Ne2 {[%clk 0:02:53]} 16... Nf8 {[%clk
0:02:07.5]} 17. Bf5 {[%clk 0:02:51]} 17... Ne6 {[%clk 0:02:06.1]} 18. Ne5 {[%clk
0:02:44.1]} 18... c5 {[%clk 0:01:50.9]} 19. bxc5 {[%clk 0:02:43.2]} 19... Nxc5
{[%clk 0:01:40.9]} 20. Bxc8 {[%clk 0:02:36.2]} 20... Qxc8 {[%clk 0:01:32.2]} 21.
Bxf6 {[%clk 0:02:22.8]} 21... gxf6 {[%clk 0:01:33.1]} 22. dxc5 {[%clk
0:02:17.9]} 22... Bxe5 {[%clk 0:01:30.5]} 23. c6 {[%clk 0:02:16.4]} 23... Ba8
{[%clk 0:01:09.1]} 24. Rxb6 {[%clk 0:02:09.1]} 24... Bc7 {[%clk 0:01:06.1]} 25.
Rb4 {[%clk 0:02:04]} 1-0

[Event "Early-Titled-Tuesday-Blitz-April-02-2024"]
[Site "Chess.com"]
[Date "2024.04.02"]
[Round "11"]
[White "Gabcur"]
[Black "AccioChess"]
[Result "0-1"]
[WhiteElo "2338"]
[BlackElo "2449"]
[TimeControl "180+1"]
[EndTime "10:04:46 PDT"]
[Termination "AccioChess won by checkmate"]

1. d4 {[%clk 0:03:00.9]} 1... Nf6 {[%clk 0:02:59.8]} 2. c4 {[%clk 0:03:01]} 2...
g6 {[%clk 0:03:00.1]} 3. Nc3 {[%clk 0:03:01]} 3... d5 {[%clk 0:02:59.8]} 4. Nf3
{[%clk 0:02:58.6]} 4... Bg7 {[%clk 0:02:59.5]} 5. e3 {[%clk 0:02:59.1]} 5... O-O
{[%clk 0:02:59.2]} 6. Be2 {[%clk 0:02:59.4]} 6... c5 {[%clk 0:02:56.3]} 7. O-O
{[%clk 0:02:59.3]} 7... cxd4 {[%clk 0:02:55.9]} 8. exd4 {[%clk 0:02:59.6]} 8...
Nc6 {[%clk 0:02:55.5]} 9. c5 {[%clk 0:02:59.7]} 9... Ne4 {[%clk 0:02:51.7]} 10.
Be3 {[%clk 0:03:00.1]} 10... f5 {[%clk 0:02:51.8]} 11. Qa4 {[%clk 0:02:43.9]}
11... h6 {[%clk 0:02:48.7]} 12. Nxd5 {[%clk 0:02:34.1]} 12... Kh7 {[%clk
0:02:43.9]} 13. Nb6 {[%clk 0:02:17.3]} 13... axb6 {[%clk 0:02:41.5]} 14. Qxa8
{[%clk 0:02:16.5]} 14... f4 {[%clk 0:02:36.8]} 15. Bd3 {[%clk 0:01:37.1]} 15...
fxe3 {[%clk 0:02:24.2]} 16. Bxe4 {[%clk 0:01:36.1]} 16... exf2+ {[%clk
0:02:24.4]} 17. Kh1 {[%clk 0:01:35.3]} 17... Nxd4 {[%clk 0:02:24.4]} 18. cxb6
{[%clk 0:01:10.5]} 18... Qxb6 {[%clk 0:02:13.6]} 19. Qa4 {[%clk 0:01:00.3]}
19... Nxf3 {[%clk 0:02:09.1]} 20. Bxf3 {[%clk 0:00:57.2]} 20... Rxf3 {[%clk
0:02:07]} 21. gxf3 {[%clk 0:00:56.5]} 21... Bh3 {[%clk 0:02:06.6]} 22. Rfd1
{[%clk 0:00:45.8]} 22... Qxb2 {[%clk 0:01:59.5]} 23. Rab1 {[%clk 0:00:39]} 23...
f1=Q+ {[%clk 0:01:58.4]} 24. Rxf1 {[%clk 0:00:38]} 24... Qg2# {[%clk 0:01:59.3]}
0-1

[Event "Early-Titled-Tuesday-Blitz-April-02-2024"]
[Site "Chess.com"]
[Date "2024.04.02"]
[Round "11"]
[White "GMAneta"]
[Black "JCVanDamme10"]
[Result "1-0"]
[WhiteElo "2500"]
[BlackElo "2353"]
[TimeControl "180+1"]
[EndTime "10:04:51 PDT"]
[Termination "GMAneta won by resignation"]

1. d4 {[%clk 0:02:59.8]} 1... d5 {[%clk 0:02:59.6]} 2. c4 {[%clk 0:02:58.9]}
2... c6 {[%clk 0:03:00.2]} 3. Nf3 {[%clk 0:02:56.9]} 3... Nf6 {[%clk 0:03:00.3]}
4. Nc3 {[%clk 0:02:56.5]} 4... e6 {[%clk 0:02:59.6]} 5. cxd5 {[%clk 0:02:55.8]}
5... exd5 {[%clk 0:02:59.4]} 6. Bg5 {[%clk 0:02:55.3]} 6... Be7 {[%clk
0:02:59.3]} 7. Qc2 {[%clk 0:02:54.9]} 7... O-O {[%clk 0:02:59.7]} 8. e3 {[%clk
0:02:54.3]} 8... Nbd7 {[%clk 0:02:59.6]} 9. Bd3 {[%clk 0:02:54.1]} 9... Re8
{[%clk 0:02:59.5]} 10. O-O {[%clk 0:02:49.6]} 10... Nf8 {[%clk 0:02:59.5]} 11.
Rab1 {[%clk 0:02:49.4]} 11... a5 {[%clk 0:02:56.7]} 12. a3 {[%clk 0:02:48.8]}
12... Ne6 {[%clk 0:02:56.6]} 13. Bxf6 {[%clk 0:02:47.6]} 13... Bxf6 {[%clk
0:02:57.2]} 14. Bxh7+ {[%clk 0:02:47.6]} 14... Kh8 {[%clk 0:02:56.7]} 15. Bd3
{[%clk 0:02:47.6]} 15... g6 {[%clk 0:02:50.7]} 16. b4 {[%clk 0:02:47.1]} 16...
axb4 {[%clk 0:02:49.3]} 17. axb4 {[%clk 0:02:47.3]} 17... Ng7 {[%clk 0:02:49.6]}
18. b5 {[%clk 0:02:47.1]} 18... Bf5 {[%clk 0:02:49]} 19. Bxf5 {[%clk 0:02:47.1]}
19... Nxf5 {[%clk 0:02:49.1]} 20. bxc6 {[%clk 0:02:47.5]} 20... bxc6 {[%clk
0:02:49]} 21. Na4 {[%clk 0:02:47.7]} 21... Qd6 {[%clk 0:02:43.2]} 22. Rfc1
{[%clk 0:02:46.4]} 22... Rac8 {[%clk 0:02:39.8]} 23. Nb6 {[%clk 0:02:43.6]}
23... Rc7 {[%clk 0:02:38.1]} 24. Qc5 {[%clk 0:02:42.7]} 24... Qxc5 {[%clk
0:02:35.8]} 25. Rxc5 {[%clk 0:02:42.1]} 25... Nd6 {[%clk 0:02:33.1]} 26. Nxd5
{[%clk 0:02:40.3]} 26... cxd5 {[%clk 0:02:30.6]} 27. Rxc7 {[%clk 0:02:39.9]}
27... Kg7 {[%clk 0:02:29.6]} 28. h3 {[%clk 0:02:38.6]} 28... g5 {[%clk
0:02:09.4]} 29. Rd7 {[%clk 0:02:37.7]} 29... Ne4 {[%clk 0:01:57.3]} 30. Rbb7
{[%clk 0:02:35.6]} 30... Rf8 {[%clk 0:01:56.5]} 31. Rxd5 {[%clk 0:02:35.2]}
31... Nc3 {[%clk 0:01:56.5]} 32. Rdd7 {[%clk 0:02:34.1]} 32... Kg6 {[%clk
0:01:54.1]} 33. g3 {[%clk 0:02:33.7]} 33... Ne4 {[%clk 0:01:52.1]} 34. Kg2
{[%clk 0:02:33.1]} 34... Nc3 {[%clk 0:01:47.3]} 35. Nh2 {[%clk 0:02:23.8]} 35...
Ne4 {[%clk 0:01:33.1]} 36. Ng4 {[%clk 0:02:17.5]} 36... Bg7 {[%clk 0:01:33.2]}
37. Ne5+ {[%clk 0:02:17.1]} 37... Bxe5 {[%clk 0:01:32.5]} 38. dxe5 {[%clk
0:02:18]} 38... Nc5 {[%clk 0:01:26.8]} 39. Rb6+ {[%clk 0:02:15.4]} 39... Kg7
{[%clk 0:01:27.2]} 40. Re7 {[%clk 0:02:14.6]} 40... Rd8 {[%clk 0:01:14.5]} 41.
Rc6 {[%clk 0:02:12.8]} 41... Ne6 {[%clk 0:01:12.2]} 42. Rcxe6 {[%clk 0:02:12.5]}
1-0

[Event "Early-Titled-Tuesday-Blitz-April-02-2024"]
[Site "Chess.com"]
[Date "2024.04.02"]
[Round "11"]
[White "Quattroporte300"]
[Black "VeraVujovic"]
[Result "1-0"]
[WhiteElo "2495"]
[BlackElo "2251"]
[TimeControl "180+1"]
[EndTime "10:04:53 PDT"]
[Termination "Quattroporte300 won by resignation"]

1. e4 {[%clk 0:03:00.9]} 1... e5 {[%clk 0:02:58.6]} 2. Nf3 {[%clk 0:03:00.3]}
2... Nc6 {[%clk 0:02:58.8]} 3. Bc4 {[%clk 0:03:00.1]} 3... Bc5 {[%clk
0:02:58.3]} 4. c3 {[%clk 0:03:00.1]} 4... Nf6 {[%clk 0:02:58.1]} 5. d3 {[%clk
0:03:00.9]} 5... d6 {[%clk 0:02:57.1]} 6. Nbd2 {[%clk 0:03:00]} 6... a6 {[%clk
0:02:57.4]} 7. Bb3 {[%clk 0:02:59.8]} 7... Ba7 {[%clk 0:02:56.7]} 8. Nf1 {[%clk
0:02:58.6]} 8... Ne7 {[%clk 0:02:56]} 9. Ng3 {[%clk 0:02:57]} 9... Ng6 {[%clk
0:02:56.3]} 10. Be3 {[%clk 0:02:55]} 10... O-O {[%clk 0:02:51.4]} 11. O-O {[%clk
0:02:54.6]} 11... Ng4 {[%clk 0:02:47.6]} 12. Bxa7 {[%clk 0:02:52.8]} 12... Rxa7
{[%clk 0:02:48.5]} 13. h3 {[%clk 0:02:50.5]} 13... Nf6 {[%clk 0:02:45.5]} 14. d4
{[%clk 0:02:50]} 14... Qe7 {[%clk 0:02:44]} 15. Re1 {[%clk 0:02:47]} 15... Nf4
{[%clk 0:02:42.5]} 16. Kh2 {[%clk 0:02:29]} 16... N6h5 {[%clk 0:02:34.7]} 17.
Nxh5 {[%clk 0:02:24.6]} 17... Nxh5 {[%clk 0:02:33.1]} 18. Nxe5 {[%clk
0:02:20.8]} 18... Nf6 {[%clk 0:01:41.5]} 19. Nd3 {[%clk 0:02:16.2]} 19... Nd7
{[%clk 0:01:32.4]} 20. f4 {[%clk 0:02:14.1]} 20... b5 {[%clk 0:01:26.6]} 21. e5
{[%clk 0:02:13.3]} 21... c5 {[%clk 0:01:24.8]} 22. dxc5 {[%clk 0:01:45.3]} 22...
dxc5 {[%clk 0:01:22.1]} 23. Bd5 {[%clk 0:01:43.4]} 23... Nb6 {[%clk 0:01:20.3]}
24. Be4 {[%clk 0:01:41]} 24... Bb7 {[%clk 0:01:17.4]} 25. Qf3 {[%clk 0:01:37.8]}
25... c4 {[%clk 0:01:15]} 26. Nf2 {[%clk 0:01:34.4]} 26... Rd8 {[%clk
0:01:12.6]} 27. Rad1 {[%clk 0:01:30.6]} 27... Nd7 {[%clk 0:01:11.5]} 28. Bxb7
{[%clk 0:01:29.2]} 1-0

[Event "Early-Titled-Tuesday-Blitz-April-02-2024"]
[Site "Chess.com"]
[Date "2024.04.02"]
[Round "11"]
[White "Joachim100x"]
[Black "Yan_Dyomin2010"]
[Result "1/2-1/2"]
[WhiteElo "2561"]
[BlackElo "2696"]
[TimeControl "180+1"]
[EndTime "10:05:14 PDT"]
[Termination "Game drawn - insufficient material"]

1. e4 {[%clk 0:03:00.9]} 1... c5 {[%clk 0:03:00.4]} 2. Nf3 {[%clk 0:03:00.3]}
2... Nc6 {[%clk 0:02:59.8]} 3. b3 {[%clk 0:02:57.4]} 3... g6 {[%clk 0:02:58]} 4.
Bb2 {[%clk 0:02:56.9]} 4... Nf6 {[%clk 0:02:57.7]} 5. d4 {[%clk 0:02:51]} 5...
cxd4 {[%clk 0:02:56.2]} 6. Nxd4 {[%clk 0:02:51.2]} 6... Bg7 {[%clk 0:02:56.2]}
7. Nxc6 {[%clk 0:02:51]} 7... bxc6 {[%clk 0:02:55.7]} 8. Bd3 {[%clk 0:02:49.1]}
8... O-O {[%clk 0:02:54.7]} 9. O-O {[%clk 0:02:49]} 9... d5 {[%clk 0:02:52.6]}
10. exd5 {[%clk 0:02:46.4]} 10... cxd5 {[%clk 0:02:52]} 11. c4 {[%clk
0:02:46.5]} 11... Be6 {[%clk 0:02:50.3]} 12. cxd5 {[%clk 0:02:42.7]} 12... Qxd5
{[%clk 0:02:47.6]} 13. Nc3 {[%clk 0:02:41.8]} 13... Qg5 {[%clk 0:02:45.6]} 14.
Qc1 {[%clk 0:02:35.9]} 14... Qh5 {[%clk 0:02:44.1]} 15. Be2 {[%clk 0:02:25.7]}
15... Bg4 {[%clk 0:02:40.5]} 16. Bxg4 {[%clk 0:02:23.3]} 16... Nxg4 {[%clk
0:02:41.4]} 17. h3 {[%clk 0:02:23.6]} 17... Ne5 {[%clk 0:02:39.6]} 18. Qd1
{[%clk 0:02:21.3]} 18... Qxd1 {[%clk 0:02:23.3]} 19. Raxd1 {[%clk 0:02:20.5]}
19... Rfd8 {[%clk 0:02:23.9]} 20. Rxd8+ {[%clk 0:02:12.2]} 20... Rxd8 {[%clk
0:02:22.9]} 21. Rd1 {[%clk 0:02:13.1]} 21... Rxd1+ {[%clk 0:02:21.2]} 22. Nxd1
{[%clk 0:02:12.6]} 22... Nc6 {[%clk 0:02:19.3]} 23. Bxg7 {[%clk 0:02:09.5]}
23... Kxg7 {[%clk 0:02:20.2]} 24. Kf1 {[%clk 0:02:10]} 24... Kf6 {[%clk
0:02:20.2]} 25. Ke2 {[%clk 0:02:09.2]} 25... Ke5 {[%clk 0:02:20.6]} 26. Ke3
{[%clk 0:02:00.6]} 26... f5 {[%clk 0:02:17.7]} 27. f4+ {[%clk 0:02:00.1]} 27...
Kd5 {[%clk 0:02:18.1]} 28. Nc3+ {[%clk 0:01:59.4]} 28... Kc5 {[%clk 0:02:17.5]}
29. a3 {[%clk 0:01:59.4]} 29... a5 {[%clk 0:02:16.2]} 30. Na4+ {[%clk
0:01:57.2]} 30... Kd6 {[%clk 0:02:16.7]} 31. Nc3 {[%clk 0:01:55.8]} 31... e5
{[%clk 0:02:15.1]} 32. fxe5+ {[%clk 0:01:55.5]} 32... Kxe5 {[%clk 0:02:16]} 33.
Ne2 {[%clk 0:01:52.2]} 33... g5 {[%clk 0:02:15.1]} 34. g3 {[%clk 0:01:51.9]}
34... h6 {[%clk 0:02:14.2]} 35. h4 {[%clk 0:01:46.4]} 35... Ne7 {[%clk
0:02:11.6]} 36. hxg5 {[%clk 0:01:45.8]} 36... hxg5 {[%clk 0:02:11.4]} 37. Nc3
{[%clk 0:01:36.8]} 37... Nc6 {[%clk 0:02:05.9]} 38. Ne2 {[%clk 0:01:30.7]} 38...
Ke6 {[%clk 0:01:51.7]} 39. Nd4+ {[%clk 0:01:26.8]} 39... Nxd4 {[%clk 0:01:48.6]}
40. Kxd4 {[%clk 0:01:26.7]} 40... Kd6 {[%clk 0:01:48.4]} 41. b4 {[%clk
0:01:25.7]} 41... axb4 {[%clk 0:01:46.9]} 42. axb4 {[%clk 0:01:25.3]} 42... Kc6
{[%clk 0:01:47.5]} 43. Ke5 {[%clk 0:01:24]} 43... f4 {[%clk 0:01:47.1]} 44. gxf4
{[%clk 0:01:24.2]} 44... gxf4 {[%clk 0:01:47.8]} 45. Kxf4 {[%clk 0:01:24.2]}
45... Kb5 {[%clk 0:01:48.5]} 46. Ke4 {[%clk 0:01:24.2]} 46... Kxb4 {[%clk
0:01:49.4]} 1/2-1/2

[Event "Early-Titled-Tuesday-Blitz-April-02-2024"]
[Site "Chess.com"]
[Date "2024.04.02"]
[Round "11"]
[White "JJDAREK"]
[Black "kleber2007"]
[Result "0-1"]
[WhiteElo "2334"]
[BlackElo "2465"]
[TimeControl "180+1"]
[EndTime "10:05:50 PDT"]
[Termination "kleber2007 won by resignation"]

1. c4 {[%clk 0:03:00.9]} 1... c5 {[%clk 0:02:54.3]} 2. g3 {[%clk 0:03:00.6]}
2... g6 {[%clk 0:02:54.2]} 3. Bg2 {[%clk 0:02:59.8]} 3... Bg7 {[%clk 0:02:54.9]}
4. Nc3 {[%clk 0:03:00.2]} 4... Nc6 {[%clk 0:02:55.5]} 5. d3 {[%clk 0:03:00.5]}
5... d6 {[%clk 0:02:54.8]} 6. Qd2 {[%clk 0:03:00.9]} 6... Qd7 {[%clk 0:02:53.6]}
7. b3 {[%clk 0:02:59.6]} 7... b6 {[%clk 0:02:53.4]} 8. Bb2 {[%clk 0:03:00]} 8...
Bb7 {[%clk 0:02:52.7]} 9. h4 {[%clk 0:02:59.4]} 9... h5 {[%clk 0:02:52.2]} 10.
Nh3 {[%clk 0:02:58.7]} 10... e5 {[%clk 0:02:41]} 11. Nd5 {[%clk 0:02:48.2]}
11... Nge7 {[%clk 0:02:39.7]} 12. Ng5 {[%clk 0:02:41.5]} 12... Nxd5 {[%clk
0:02:38.4]} 13. Bxd5 {[%clk 0:02:42.4]} 13... O-O {[%clk 0:02:33.6]} 14. O-O
{[%clk 0:02:16.9]} 14... Nd4 {[%clk 0:02:18.8]} 15. Bxb7 {[%clk 0:02:10.4]}
15... Qxb7 {[%clk 0:02:17.9]} 16. Bxd4 {[%clk 0:02:08.5]} 16... cxd4 {[%clk
0:02:15.3]} 17. Ne4 {[%clk 0:02:00.6]} 17... d5 {[%clk 0:02:05.2]} 18. cxd5
{[%clk 0:01:59.3]} 18... Qxd5 {[%clk 0:02:05.8]} 19. Rac1 {[%clk 0:01:52.5]}
19... Rac8 {[%clk 0:01:49.5]} 20. Rxc8 {[%clk 0:01:48.5]} 20... Rxc8 {[%clk
0:01:49.1]} 21. Rc1 {[%clk 0:01:49.4]} 21... Rc6 {[%clk 0:01:48.3]} 22. Rxc6
{[%clk 0:01:42.9]} 22... Qxc6 {[%clk 0:01:48.2]} 23. f3 {[%clk 0:01:10.2]} 23...
f5 {[%clk 0:01:45]} 24. Nf2 {[%clk 0:01:04.3]} 24... Kh7 {[%clk 0:01:44.6]} 25.
Nh3 {[%clk 0:00:48.7]} 25... Bh6 {[%clk 0:01:40]} 26. f4 {[%clk 0:00:43.5]}
26... Qc3 {[%clk 0:01:23.6]} 27. Qd1 {[%clk 0:00:31.7]} 27... e4 {[%clk
0:01:21.9]} 28. dxe4 {[%clk 0:00:29.3]} 28... Qxg3+ {[%clk 0:01:19.9]} 29. Kf1
{[%clk 0:00:29.2]} 29... Qxh3+ {[%clk 0:01:19.7]} 0-1

[Event "Early-Titled-Tuesday-Blitz-April-02-2024"]
[Site "Chess.com"]
[Date "2024.04.02"]
[Round "11"]
[White "Aleksandar-Topalov"]
[Black "romulocardoso"]
[Result "1-0"]
[WhiteElo "2348"]
[BlackElo "2441"]
[TimeControl "180+1"]
[EndTime "10:05:53 PDT"]
[Termination "Aleksandar-Topalov won by resignation"]

1. b3 {[%clk 0:03:00.9]} 1... Nf6 {[%clk 0:02:57.3]} 2. Bb2 {[%clk 0:03:01]}
2... g6 {[%clk 0:02:57.8]} 3. Bxf6 {[%clk 0:03:01]} 3... exf6 {[%clk 0:02:58.2]}
4. c4 {[%clk 0:03:01.2]} 4... Bg7 {[%clk 0:02:58.9]} 5. Nc3 {[%clk 0:03:01.1]}
5... O-O {[%clk 0:02:59.5]} 6. e3 {[%clk 0:03:01.6]} 6... c6 {[%clk 0:03:00.1]}
7. Nge2 {[%clk 0:03:01.6]} 7... d5 {[%clk 0:03:00.7]} 8. cxd5 {[%clk 0:03:01.9]}
8... cxd5 {[%clk 0:03:00.9]} 9. d4 {[%clk 0:03:01.5]} 9... a6 {[%clk 0:02:54.4]}
10. g3 {[%clk 0:03:01.6]} 10... b5 {[%clk 0:02:54.1]} 11. Bg2 {[%clk 0:03:01.9]}
11... b4 {[%clk 0:02:48.5]} 12. Nxd5 {[%clk 0:02:59.4]} 12... Ra7 {[%clk
0:02:48.1]} 13. Nxb4 {[%clk 0:02:55.1]} 13... Qa5 {[%clk 0:02:47.4]} 14. Qd2
{[%clk 0:02:55.2]} 14... Bb7 {[%clk 0:02:44.3]} 15. Bxb7 {[%clk 0:02:33.1]}
15... Rxb7 {[%clk 0:02:45.2]} 16. Nd3 {[%clk 0:02:33]} 16... Qd5 {[%clk
0:02:17.5]} 17. O-O {[%clk 0:02:32.3]} 17... h5 {[%clk 0:02:13.4]} 18. Nef4
{[%clk 0:02:24.9]} 18... Qf5 {[%clk 0:02:09.5]} 19. Nc5 {[%clk 0:02:20.5]} 19...
Re7 {[%clk 0:02:04.9]} 20. Qd3 {[%clk 0:02:11]} 20... Qg4 {[%clk 0:01:56.3]} 21.
h3 {[%clk 0:01:53.2]} 21... Qg5 {[%clk 0:01:45.1]} 22. h4 {[%clk 0:01:47.3]}
22... Qg4 {[%clk 0:01:43.4]} 23. Qd1 {[%clk 0:01:45.7]} 23... Qc8 {[%clk
0:01:33.5]} 24. Rc1 {[%clk 0:01:44.6]} 24... Qd8 {[%clk 0:01:17.7]} 25. Qf3
{[%clk 0:01:41.8]} 25... Qa5 {[%clk 0:01:15.3]} 26. Rc2 {[%clk 0:01:31.3]} 26...
Rd8 {[%clk 0:00:48.6]} 27. Rfc1 {[%clk 0:01:27.2]} 27... f5 {[%clk 0:00:26.2]}
28. Nb7 {[%clk 0:01:26]} 1-0

[Event "Early-Titled-Tuesday-Blitz-April-02-2024"]
[Site "Chess.com"]
[Date "2024.04.02"]
[Round "11"]
[White "Vahe_Danielyan"]
[Black "the_chess_child"]
[Result "1-0"]
[WhiteElo "2657"]
[BlackElo "2814"]
[TimeControl "180+1"]
[EndTime "10:05:54 PDT"]
[Termination "Vahe_Danielyan won by resignation"]

1. d4 {[%clk 0:03:00.4]} 1... Nf6 {[%clk 0:02:59.3]} 2. c4 {[%clk 0:03:00.3]}
2... g6 {[%clk 0:02:59.5]} 3. Nc3 {[%clk 0:02:59.6]} 3... Bg7 {[%clk 0:03:00]}
4. e4 {[%clk 0:02:58.6]} 4... O-O {[%clk 0:03:00.7]} 5. Nf3 {[%clk 0:02:57.2]}
5... d6 {[%clk 0:03:00.1]} 6. Be2 {[%clk 0:02:56.4]} 6... e5 {[%clk 0:02:58.7]}
7. d5 {[%clk 0:02:56]} 7... a5 {[%clk 0:02:57.9]} 8. Bg5 {[%clk 0:02:54.8]} 8...
Na6 {[%clk 0:02:58.2]} 9. Nd2 {[%clk 0:02:53.5]} 9... h6 {[%clk 0:02:56.2]} 10.
Be3 {[%clk 0:02:52.7]} 10... Nd7 {[%clk 0:02:56.4]} 11. a3 {[%clk 0:02:43]}
11... f5 {[%clk 0:02:51.1]} 12. f3 {[%clk 0:02:43]} 12... Rb8 {[%clk 0:02:31.4]}
13. Rb1 {[%clk 0:02:39.1]} 13... Nf6 {[%clk 0:02:24.9]} 14. b4 {[%clk
0:02:36.4]} 14... axb4 {[%clk 0:02:25.2]} 15. axb4 {[%clk 0:02:37.3]} 15... c5
{[%clk 0:02:25.6]} 16. bxc5 {[%clk 0:02:10.1]} 16... Nxc5 {[%clk 0:02:25.3]} 17.
O-O {[%clk 0:02:10.5]} 17... Nh5 {[%clk 0:02:18.2]} 18. Nb3 {[%clk 0:01:55.7]}
18... Nxb3 {[%clk 0:01:59.8]} 19. Rxb3 {[%clk 0:01:56.6]} 19... Nf4 {[%clk
0:01:59.4]} 20. g3 {[%clk 0:01:43.8]} 20... Nh3+ {[%clk 0:01:38.7]} 21. Kg2
{[%clk 0:01:43.7]} 21... f4 {[%clk 0:01:38.9]} 22. Bb6 {[%clk 0:01:43.7]} 22...
Qg5 {[%clk 0:01:37.8]} 23. g4 {[%clk 0:01:42.5]} 23... h5 {[%clk 0:00:42.5]} 24.
Kxh3 {[%clk 0:01:42.2]} 24... hxg4+ {[%clk 0:00:41.3]} 25. fxg4 {[%clk
0:01:43.1]} 25... f3 {[%clk 0:00:41.8]} 26. Bxf3 {[%clk 0:01:39.2]} 26... Rf4
{[%clk 0:00:40.4]} 27. Be3 {[%clk 0:01:23.2]} 27... Rxg4 {[%clk 0:00:35.9]} 28.
Bxg5 {[%clk 0:01:12.8]} 28... Rxg5+ {[%clk 0:00:35.9]} 29. Bg4 {[%clk
0:01:12.2]} 1-0

[Event "Early-Titled-Tuesday-Blitz-April-02-2024"]
[Site "Chess.com"]
[Date "2024.04.02"]
[Round "11"]
[White "Msb2"]
[Black "MyDream003"]
[Result "1-0"]
[WhiteElo "3033"]
[BlackElo "2858"]
[TimeControl "180+1"]
[EndTime "10:06:12 PDT"]
[Termination "Msb2 won by resignation"]

1. d4 {[%clk 0:03:00.9]} 1... Nf6 {[%clk 0:02:59.1]} 2. c4 {[%clk 0:03:01.3]}
2... e6 {[%clk 0:02:59]} 3. Nc3 {[%clk 0:03:02]} 3... d5 {[%clk 0:02:57.7]} 4.
cxd5 {[%clk 0:03:02.9]} 4... exd5 {[%clk 0:02:58.6]} 5. Bg5 {[%clk 0:03:03.2]}
5... c6 {[%clk 0:02:58.6]} 6. e3 {[%clk 0:03:03.9]} 6... Be7 {[%clk 0:02:59]} 7.
Bd3 {[%clk 0:03:04.4]} 7... O-O {[%clk 0:02:59.4]} 8. h3 {[%clk 0:03:05]} 8...
Nbd7 {[%clk 0:02:59.4]} 9. Qc2 {[%clk 0:03:05.1]} 9... Re8 {[%clk 0:02:59.5]}
10. Nf3 {[%clk 0:03:05.7]} 10... Nf8 {[%clk 0:02:59.4]} 11. O-O {[%clk
0:03:05.7]} 11... Ne4 {[%clk 0:02:58.2]} 12. Bf4 {[%clk 0:03:04.8]} 12... Nd6
{[%clk 0:02:50.9]} 13. b4 {[%clk 0:03:00.1]} 13... Ng6 {[%clk 0:02:46.8]} 14.
Bg3 {[%clk 0:02:58.5]} 14... Bd7 {[%clk 0:02:39]} 15. a4 {[%clk 0:02:54.5]}
15... Rc8 {[%clk 0:02:37.8]} 16. Qb3 {[%clk 0:02:52.8]} 16... Be6 {[%clk
0:02:29]} 17. Rfd1 {[%clk 0:02:47.5]} 17... Nh4 {[%clk 0:02:03.6]} 18. Ne5
{[%clk 0:02:32.8]} 18... Nhf5 {[%clk 0:01:56.2]} 19. Bh2 {[%clk 0:02:33]} 19...
Nh4 {[%clk 0:01:49.5]} 20. Be2 {[%clk 0:02:15.9]} 20... f6 {[%clk 0:01:46.8]}
21. Nf3 {[%clk 0:02:16.1]} 21... Nxf3+ {[%clk 0:01:46.1]} 22. Bxf3 {[%clk
0:02:17]} 22... Nc4 {[%clk 0:01:35]} 23. b5 {[%clk 0:02:16.2]} 23... Qa5 {[%clk
0:01:29.7]} 24. Rac1 {[%clk 0:01:49.6]} 24... Bf7 {[%clk 0:01:24.7]} 25. Bg4
{[%clk 0:01:47.8]} 25... Rcd8 {[%clk 0:01:23.7]} 26. bxc6 {[%clk 0:01:43.9]}
26... bxc6 {[%clk 0:01:24.6]} 27. Qb7 {[%clk 0:01:44.5]} 27... Bb4 {[%clk
0:00:29.4]} 28. Bc7 {[%clk 0:01:39.9]} 28... Nb6 {[%clk 0:00:20]} 29. Bxd8
{[%clk 0:01:40.3]} 29... Rxd8 {[%clk 0:00:20.9]} 30. Qxc6 {[%clk 0:01:34]} 30...
h5 {[%clk 0:00:21.1]} 31. Be6 {[%clk 0:01:33.3]} 31... Bxe6 {[%clk 0:00:19.6]}
32. Qxe6+ {[%clk 0:01:34.2]} 32... Kh8 {[%clk 0:00:20.3]} 33. Ne2 {[%clk
0:01:33.7]} 33... Qxa4 {[%clk 0:00:19.7]} 34. Nf4 {[%clk 0:01:33.7]} 34... Re8
{[%clk 0:00:20.4]} 35. Qf5 {[%clk 0:01:33.2]} 35... Kg8 {[%clk 0:00:21]} 36.
Qxh5 {[%clk 0:01:32.8]} 36... a5 {[%clk 0:00:20.1]} 37. Nxd5 {[%clk 0:01:28.4]}
37... Qb5 {[%clk 0:00:19.1]} 38. Nxf6+ {[%clk 0:01:28.6]} 1-0